[Event "5th Sharjah Masters 2022"]
[Site "Sharjah"]
[Date "2022.05.24"]
[Round "4.24"]
[White "Erdogdu, Mert"]
[Black "Ivic, Velimir"]
[Result "0-1"]
[ECO "B33"]
[WhiteElo "2407"]
[BlackElo "2623"]
[Annotator "TA"]
[PlyCount "176"]
[EventDate "2022.05.21"]
[EventType "swiss"]
[EventCountry "UAE"]
[SourceTitle "playchess.com"]
[Source "ChessBase"]
[SourceQuality "1"]
[TimeControl "5400+30"]

{[%evp 20,176,31,12,13,9,10,4,14,7,7,20,12,0,14,0,0,-18,-10,-8,0,-36,-20,-41,-41,-45,-39,-98,-93,-85,-102,-86,-85,-93,-43,-53,0,0,0,0,0,-14,0,0,0,0,0,0,0,0,0,-10,-10,-10,-10,-22,-22,-35,-41,-39,-39,-38,-29,-29,-29,-29,-30,-52,-52,-104,-38,-38,0,-104,-104,-104,-104,-104,-104,-104,-104,-104,-52,-45,-45,-76,-76,-74,-61,-76,0,-104,-104,-104,-104,-104,-104,-104,-104,-104,-410,-408,0,-106,-40,-40,-39,-79,-44,-44,-5,-8,8,8,6,-18,-8,-14,-22,-616,-618,-511,-568,-520,-528,-395,-256,-152,-105,-635,-370,-329,-270,-1316,-1171,-831,-511,-6079,-5954,-1892,-5464,-5077,-5154,-5350,-5118,-2520,-2528,-29965,-29967,-29966,-29968,-29964,-29967,-29970,-29971,-29968,-29968,-29996,-29997]} 1. e4 {[%emt 0:00:06]} c5 {[%emt 0:00:09]} 2. Nf3 {[%emt 0:00:32][%cal Bg1f3,Bf3d4,Bd4b5,Bb5a3,Ba3c2][%mdl 32]} Nc6 {[%emt 0:00:10]} 3. d4 {[%emt 0:00:32]} cxd4 {[%emt 0:00:06]} 4. Nxd4 {[%emt 0:00:04]} Nf6 {[%emt 0:00:08]} 5. Nc3 {[%emt 0:00:15]} e5 {[%emt 0:00:07]} 6. Ndb5 {[%emt 0:00:22]} d6 {[%emt 0:00:10]} 7. Bg5 {[%emt 0:00:39]} a6 {[%emt 0:00:15]} 8. Na3 {[%emt 0:00:16]} b5 {[%emt 0:00:09]} 9. Nd5 {[%emt 0:00:52]} Be7 {[%emt 0:00:31]} 10. Bxf6 {[%emt 0:00:14]} Bxf6 {[%emt 0:00:05]} 11. c4 {[%emt 0:00:52]} b4 {[%emt 0:01:05] B33: Sicilian: Pelikan and Sveshnikov Variations.} 12. Nc2 {[%emt 0:00:07]} O-O $1 {[%emt 0:02:44][%mdl 4] is recently more successful than 12...a5.} 13. g3 {[%emt 0:01:04]} a5 {[%emt 0:01:45] The position is equal.} 14. b3 {[%emt 0:01:25]} g6 {[%emt 0:02:23]} 15. Nxf6+ {[%emt 0:03:56]} Qxf6 {[%emt 0:00:05]} 16. Bg2 {[%emt 0:00:06] [#]} h5 $146 {[%emt 0:02:13]} ({Predecessor:} 16... Nb8 17. O-O Nd7 18. f4 Bb7 19. f5 Nc5 20. Qe2 Ra6 21. Ne3 Qg5 22. Nc2 f6 {0-1 (60) Cech,D (2160)-Spacek,O (2237) Slovakia 2020}) 17. h4 {[%emt 0:00:52]} Bg4 {[%emt 0:01:15]} 18. Qd5 {[%emt 0:09:16]} Nd4 {[%emt 0:09:11]} 19. Nxd4 {[%emt 0:00:58]} exd4 {[%emt 0:00:07]} 20. f3 {[%emt 0:16:18]} Be6 {[%emt 0:02:40]} (20... Bxf3 $2 21. O-O $18) 21. Qg5 {[%emt 0:00:58]} (21. Qxd6 {keeps more tension.} d3 22. e5 Qf5 23. Kd2) 21... Qxg5 {[%emt 0:03:58]} 22. hxg5 {[%emt 0:00:12]} a4 {[%emt 0:00:11]} 23. Kf2 {[%emt 0:29:18]} (23. O-O $1 $15) 23... Ra5 {[%emt 0:02:22]} 24. Rhd1 {[%emt 0:00:12]} Rfa8 {[%emt 0:05:22]} 25. Rab1 {[%emt 0:00:35]} axb3 {[%emt 0:05:03]} 26. axb3 {[%emt 0:00:47]} Rxg5 {[%emt 0:05:39]} (26... Ra2+ $1 $17 27. Kg1 R8a5) 27. Rb2 {[%emt 0:00:17]} Ra6 {[%emt 0:03:22]} (27... Rga5 $15) 28. Rxd4 $11 {[%emt 0:00:56]} Kf8 {[%emt 0:00:17]} 29. f4 {[%emt 0:09:44]} Rga5 {[%emt 0:00:40]} 30. Bf3 {[%emt 0:02:03]} Ke7 {[%emt 0:00:31]} 31. Rbd2 {[%emt 0:01:13]} f6 {[%emt 0:02:06]} 32. Be2 {[%emt 0:01:42]} Rb6 {[%emt 0:03:13]} 33. Bf3 {[%emt 0:01:11]} Bf7 {[%emt 0:06:27]} 34. Ke3 {[%emt 0:03:12]} g5 {[%emt 0:10:39]} 35. Rh2 {[%emt 0:01:07]} g4 {[%emt 0:00:40]} 36. Bd1 {[%emt 0:00:20]} Rba6 {[%emt 0:03:57]} 37. Rhd2 {[%emt 0:02:49]} Ra2 {[%emt 0:03:18]} 38. R4d3 {[%emt 0:04:22]} Rxd2 {[%emt 0:00:56]} 39. Rxd2 $15 {[%emt 0:00:04][%mdl 4096] Endgame KRB-KRB} Ra1 {[%emt 0:03:26]} 40. Kd4 {[%emt 0:01:50]} Rc1 {[%emt 0:02:12]} 41. Rd3 {[%emt 0:01:02]} Ke6 {[%emt 0:03:18]} 42. Ke3 {[%emt 0:01:17]} Be8 {[%emt 0:02:15]} 43. f5+ {[%emt 0:03:38]} Ke7 {[%emt 0:00:24]} 44. Kf4 {[%emt 0:00:08]} (44. Rd2 $15) 44... Bc6 {[%emt 0:00:48]} (44... Kd7 $1 $17) 45. Ke3 {[%emt 0:00:26]} Kd7 {[%emt 0:01:10]} 46. Kf4 {[%emt 0:01:28]} (46. Kd2 $1 $11 Rb1 47. c5) 46... Kc7 $17 {[%emt 0:00:53]} 47. Ke3 {[%emt 0:00:11]} Bb7 {[%emt 0:03:11]} 48. Kd4 {[%emt 0:01:28]} Kb6 {[%emt 0:00:54]} 49. Rd2 {[%emt 0:00:14]} Ra1 {[%emt 0:00:55]} 50. Bc2 {[%emt 0:04:00]} Rh1 {[%emt 0:04:29] Prevents Rh2.} (50... Rg1 $17 51. Rd3 Ba8) 51. Rg2 $15 {[%emt 0:00:00]} Bc6 {[%emt 0:01:11]} 52. Bd3 $1 {[%emt 0:00:00]} Rd1 {[%emt 0:02:02]} 53. Rh2 {[%emt 0:00:09]} Be8 {[%emt 0:00:02]} (53... Rg1 $2 54. Rxh5 Rxg3 55. Rh6 $18) 54. Rg2 {[%emt 0:00:25] Prevents Rg1.} Rc1 {[%emt 0:02:52]} (54... Bf7 $1 $17) 55. Bc2 {[%emt 0:01:56]} (55. Kd5 $11 {remains equal.} Rd1 56. Kd4) 55... Bf7 $17 {[%emt 0:00:13]} 56. Rd2 {[%emt 0:00:00]} Rg1 {[%emt 0:00:20]} 57. Rd3 {[%emt 0:00:00]} Rg2 {[%emt 0:02:30]} 58. Bd1 {[%emt 0:00:00]} Kc6 {[%emt 0:01:21] Black is more active.} 59. Re3 {[%emt 0:00:18]} Rd2+ {[%emt 0:00:11]} 60. Rd3 {[%emt 0:00:02]} Rg2 {[%emt 0:01:09]} (60... Rb2 $19 {and Black stays clearly on top. ...Rg2 is the strong threat.} 61. Re3 (61. Ke3 $2 Kc5 $19) 61... Rd2+ 62. Rd3 Rg2) 61. Re3 {[%emt 0:00:02]} Kd7 {[%emt 0:00:37]} (61... Be8 $17) 62. Rd3 $15 {[%emt 0:00:17]} Ke7 {[%emt 0:00:10]} 63. Re3 {[%emt 0:01:32]} Be8 {[%emt 0:00:17]} 64. Be2 $1 {[%emt 0:02:19]} Bc6 {[%emt 0:00:45]} 65. c5 {[%emt 0:00:00]} Rg1 {[%emt 0:00:28]} 66. cxd6+ {[%emt 0:00:00]} Kxd6 {[%emt 0:00:02]} 67. Bc4 {[%emt 0:00:03]} Rd1+ {[%emt 0:01:16]} 68. Rd3 {[%emt 0:00:02]} Re1 {[%emt 0:00:14][%csl Gc6][%cal Re1e4]} 69. Bd5 $2 {[%emt 0:00:31][%mdl 8192]} (69. Re3 $11 Rd1+ 70. Rd3) 69... Bxd5 $19 {[%emt 0:00:32]} 70. exd5 {[%emt 0:00:03] KR-KR} Re5 {[%emt 0:00:23]} 71. Kc4 {[%emt 0:00:14]} Rxf5 {[%emt 0:00:08] aiming for ...Rf3.} 72. Rd1 {[%emt 0:02:20]} h4 {[%emt 0:01:13]} 73. gxh4 {[%emt 0:00:19]} Rf2 {[%emt 0:00:37]} (73... Rh5 $142 74. Kxb4 f5) 74. Rh1 $2 {[%emt 0:00:28][%mdl 8192]} (74. h5 $17) 74... g3 {[%emt 0:00:20]} 75. h5 {[%emt 0:00:45]} f5 {[%emt 0:00:24][%cal Bf6f5,Bf5f4][%mdl 32] Strongly threatening ...Rh2.} 76. Kd4 $2 {[%emt 0:00:37]} (76. Rg1 Rf4+ 77. Kd3) 76... Rh2 {[%emt 0:00:31]} 77. Rg1 {[%emt 0:00:05]} Rh4+ {[%emt 0:00:17]} 78. Ke3 {[%emt 0:00:17]} (78. Kd3 $142 Kxd5 79. Rxg3) 78... Kxd5 {[%emt 0:00:19]} 79. Kf3 {[%emt 0:01:03]} f4 {[%emt 0:00:18] And now ...Kd4 would win.} 80. Rd1+ {[%emt 0:00:35]} Ke5 {[%emt 0:00:17]} 81. Rc1 {[%emt 0:00:03]} Kd4 {[%emt 0:01:29]} 82. Rc4+ {[%emt 0:00:15]} Kd3 {[%emt 0:00:01]} 83. Rxb4 {[%emt 0:01:04]} g2 {[%emt 0:00:02] Black mates.} 84. Kf2 {[%emt 0:00:04]} Rg4 $1 {[%emt 0:00:21]} 85. Kg1 {[%emt 0:00:04]} Ke2 $1 {[%emt 0:00:49]} 86. Re4+ {[%emt 0:01:21] [#]} Kf3 $1 {[%emt 0:00:05]} 87. Rc4 {[%emt 0:00:41] [#]} Kg3 $1 {[%emt 0:00:21]} 88. Rc2 {[%emt 0:00:35]} f3 {[%emt 0:00:08] Weighted Error Value: White=0.13 (very precise) /Black=0.24 (precise)} 0-1

[Event "5th Sharjah Masters 2022"]
[Site "Sharjah"]
[Date "2022.05.24"]
[Round "4.25"]
[White "Nihal Sarin"]
[Black "Gharibyan, Mamikon"]
[Result "1/2-1/2"]
[ECO "B30"]
[WhiteElo "2646"]
[BlackElo "2487"]
[Annotator "TA"]
[PlyCount "144"]
[EventDate "2022.05.21"]
[EventType "swiss"]
[EventCountry "UAE"]
[SourceTitle "playchess.com"]
[Source "ChessBase"]
[SourceQuality "1"]
[TimeControl "5400+30"]

{[%evp 16,144,0,6,22,14,30,26,10,9,0,9,21,12,17,0,0,0,0,0,0,0,23,-82,-69,-83,0,0,0,0,0,-7,15,24,37,32,42,9,22,25,35,35,36,0,0,-3,0,0,0,-25,-3,-16,0,0,0,0,14,45,35,20,45,42,43,45,46,51,129,122,124,30,27,36,30,34,76,0,0,0,0,0,0,0,0,0,0,-1,0,0,0,0,0,0,0,-14,-14,-94,-96,-106,-108,-109,0,0,10,14,9,7,83,0,0,0,8,0,0,0,0,0,0,0,0,0,0,0,0,0,0,0,0,0,0,0,0]} 1. e4 {[%emt 0:02:57]} c5 {[%emt 0:01:45]} 2. Nf3 {[%emt 0:00:06]} Nc6 {[%emt 0:00:14]} 3. Bb5 {[%emt 0:00:06]} e6 {[%emt 0:02:38]} 4. O-O {[%emt 0:00:08]} Nge7 {[%emt 0:00:25]} 5. Re1 {[%emt 0:00:14]} a6 {[%emt 0:00:59]} 6. Bf1 {[%emt 0:00:11]} d5 {[%emt 0:01:12]} 7. exd5 {[%emt 0:00:06]} Nxd5 {[%emt 0:00:27]} 8. d4 {[%emt 0:00:08]} Nf6 {[%emt 0:00:40]} 9. Be3 {[%emt 0:00:07]} cxd4 {[%emt 0:00:33] B30: Sicilian: 2...Nc6 3 Bb5, lines without ...g6.} 10. Nxd4 {[%emt 0:00:11]} Ne5 {[%emt 0:01:12]} 11. h3 {[%emt 0:00:50]} Be7 {[%emt 0:03:07] White has an edge.} 12. c4 {[%emt 0:00:11]} O-O {[%emt 0:00:58]} 13. Nc3 {[%emt 0:00:06]} Bd7 {[%emt 0:00:19]} 14. Qb3 {[%emt 0:00:32]} Qc7 {[%emt 0:02:15]} 15. Rac1 {[%emt 0:02:12] [#]} Rfd8 $146 {[%emt 0:02:44]} ({Predecessor:} 15... Rfc8 16. Na4 Bxa4 17. Qxa4 Rd8 18. Red1 Bc5 19. b4 Neg4 20. hxg4 Nxg4 21. Nf3 Bxe3 22. fxe3 {½-½ (40) Nepomniachtchi,I (2782)-Salem,A (2690) Warsaw 2021}) 16. Nc2 {[%emt 0:23:21]} Rdc8 {[%emt 0:07:57][%cal Re5c4]} 17. Bb6 {[%emt 0:13:40]} Qb8 {[%emt 0:00:25]} 18. a3 {[%emt 0:02:15]} a5 {[%emt 0:06:10][%cal Ba6a5,Ba5a4][%mdl 32]} 19. Red1 {[%emt 0:07:37]} (19. Be3 $11 {remains equal.}) 19... a4 $17 {[%emt 0:03:06]} 20. Qa2 {[%emt 0:00:00]} Bc5 {[%emt 0:12:57]} (20... g5 $1 $17 {[%cal Rg5g4]}) 21. Bxc5 $11 {[%emt 0:00:18]} Rxc5 {[%emt 0:00:01]} 22. Ne3 {[%emt 0:00:31]} Bc6 {[%emt 0:02:21]} 23. Rd4 {[%emt 0:00:39]} h5 {[%emt 0:04:44]} 24. Rcd1 {[%emt 0:05:11]} Ned7 {[%emt 0:08:16]} 25. Qb1 {[%emt 0:09:10]} Qe5 {[%emt 0:05:27]} 26. R1d2 {[%emt 0:03:46]} Rca5 {[%emt 0:04:47] [#]} 27. Bd3 $1 {[%emt 0:08:03]} Re8 {[%emt 0:16:36]} (27... Qxd4 $2 28. Bh7+ $1 {[%mdl 512]} Nxh7 29. Rxd4 $18) (27... Nc5 28. Bc2) 28. Bc2 {[%emt 0:21:54]} Nc5 {[%emt 0:00:48]} 29. Rd8 {[%emt 0:00:00]} Ra8 {[%emt 0:02:23]} 30. Qd1 {[%emt 0:00:00]} Qc7 {[%emt 0:02:48]} 31. R8d6 {[%emt 0:00:00]} g6 {[%emt 0:01:23]} 32. R2d4 {[%emt 0:00:00]} Kg7 {[%emt 0:00:52]} 33. Rd2 {[%emt 0:00:00]} Qe7 {[%emt 0:00:46]} 34. R6d4 {[%emt 0:00:00]} Qc7 {[%emt 0:01:26]} 35. Nb5 {[%emt 0:00:00]} Bxb5 {[%emt 0:03:26]} 36. cxb5 {[%emt 0:00:00]} Rec8 {[%emt 0:00:53]} 37. Bxa4 {[%emt 0:00:22]} Qa5 {[%emt 0:00:28][%cal Rc5a4]} 38. Bc2 {[%emt 0:01:03]} Qxb5 {[%emt 0:00:05]} 39. a4 {[%emt 0:02:05]} Qe8 {[%emt 0:01:29]} 40. Nc4 {[%emt 0:00:53]} e5 {[%emt 0:00:35]} (40... Rc6 $1 $14) 41. Nd6 $16 {[%emt 0:00:58][%csl LRc8,LRe8]} Qe6 {[%emt 0:00:24] [#]} 42. Rb4 {[%emt 0:00:44] White is more active.} (42. Rh4 $1 $16) 42... Rc7 {[%emt 0:00:34]} 43. Rb5 {[%emt 0:00:01] Threatens to win with b4.} e4 {[%emt 0:00:23]} 44. b4 {[%emt 0:00:35]} Nd3 {[%emt 0:00:56]} 45. Nxb7 {[%emt 0:01:10]} (45. Bxd3 $16 exd3 46. Rxd3) 45... Rac8 {[%emt 0:00:18] And now ...e3 would win.} 46. Nc5 $1 {[%emt 0:00:37]} (46. Bxd3 $2 Rc1 47. Bf1 Rxd1 48. Rxd1 Qb3 $19) 46... Nxc5 {[%emt 0:00:03]} 47. bxc5 {[%emt 0:00:09]} Rxc5 {[%emt 0:00:32]} 48. Rxc5 {[%emt 0:00:08]} Rxc5 {[%emt 0:00:01]} 49. Re2 {[%emt 0:00:25]} Qe5 {[%emt 0:00:38]} 50. Qe1 {[%emt 0:00:21]} Qc7 {[%emt 0:00:30]} 51. Qd2 {[%emt 0:00:51]} ({Wrong is} 51. Bxe4 $2 Rc1 52. Bd3 Qc3 53. Qxc1 Qxc1+ $19) 51... Rd5 {[%emt 0:00:58]} 52. Qb4 {[%emt 0:00:17]} Rc5 {[%emt 0:00:28][%cal Bd5c5,Bc5c4,Bc4c1][%mdl 32]} 53. Qb2 {[%emt 0:00:23]} ({But not} 53. Bxe4 $2 Rc4 54. Rc2 (54. Qe1 $2 Rc1 $19) 54... Rxb4 $19) 53... Rc4 {[%emt 0:00:18]} 54. Rd2 {[%emt 0:01:07]} Qc5 {[%emt 0:01:01]} 55. Bb3 {[%emt 0:00:42]} (55. Re2 $11 {keeps the balance.}) 55... e3 $17 {[%emt 0:00:40]} 56. fxe3 {[%emt 0:00:26]} Qxe3+ {[%emt 0:00:03]} 57. Rf2 {[%emt 0:00:36]} Rc1+ {[%emt 0:01:04]} (57... Rc3 $17 {Hoping for ...Ne4.} 58. Kh2 Qe5+ 59. Kg1 h4) 58. Kh2 $1 $11 {[%emt 0:00:02] Dancing on a razor blade.} Rc3 {[%emt 0:00:30]} 59. Rf3 $36 {[%emt 0:01:01][%mdl 2048] Black is under pressure.} Qe5+ {[%emt 0:00:13]} 60. g3 {[%emt 0:00:20]} Ne4 {[%emt 0:00:42]} (60... Rc5 $11 61. Qxe5 Rxe5) 61. Rxc3 {[%emt 0:00:40]} (61. Bxf7 $16 {Strongly threatening Bb3.} Rc5 62. Qxe5+ Rxe5 63. Bc4) 61... Nxc3 $16 {[%emt 0:00:07][%mdl 4096] Endgame KQB-KQN. The position is equal.} 62. h4 {[%emt 0:00:25]} f6 {[%emt 0:00:51][%cal Bf7f6,Bf6f5,Bf5e4][%mdl 32]} 63. Qf2 {[%emt 0:00:27]} Ne4 {[%emt 0:00:36]} 64. Qa7+ {[%emt 0:00:06]} Kh6 {[%emt 0:00:30]} 65. Qe3+ {[%emt 0:00:06]} Kg7 {[%emt 0:00:25]} 66. Bc2 {[%emt 0:00:12]} f5 {[%emt 0:00:16]} 67. Bxe4 {[%emt 0:01:13]} fxe4 $11 {[%emt 0:00:04] KQ-KQ} 68. Kg2 {[%emt 0:00:12]} Qb2+ {[%emt 0:00:22]} 69. Qf2 {[%emt 0:00:09]} Qc3 {[%emt 0:01:13]} 70. Qe2 {[%emt 0:01:03]} e3 {[%emt 0:00:23]} 71. Kf3 {[%emt 0:00:18]} Qc6+ {[%emt 0:00:20]} 72. Kxe3 {[%emt 0:00:06]} Qxa4 {[%emt 0:01:30] Weighted Error Value: White=0.13 (very precise) /Black=0.12 (very precise)} 1/2-1/2

[Event "5th Sharjah Masters 2022"]
[Site "Sharjah"]
[Date "2022.05.24"]
[Round "4.26"]
[White "Jumabayev, Rinat"]
[Black "Gunina, Valentina"]
[Result "1-0"]
[ECO "A11"]
[WhiteElo "2628"]
[BlackElo "2471"]
[Annotator "TA"]
[PlyCount "87"]
[EventDate "2022.05.21"]
[EventType "swiss"]
[EventCountry "UAE"]
[SourceTitle "playchess.com"]
[Source "ChessBase"]
[SourceQuality "1"]
[TimeControl "5400+30"]

{[%evp 9,87,23,25,28,61,38,62,63,56,55,56,31,61,60,72,18,18,28,58,67,62,70,70,63,102,98,95,99,114,118,137,82,209,200,197,190,179,187,245,193,193,192,191,190,185,192,195,131,183,166,233,227,360,362,441,427,416,403,621,616,604,612,618,612,571,625,687,569,640,633,892,699,1594,1541,1976,1851,1823,1711,5868,5772]} 1. c4 {[%emt 0:00:04]} c6 {[%emt 0:00:09]} 2. Nf3 {[%emt 0:00:15]} d5 {[%emt 0:00:09]} 3. g3 {[%emt 0:00:05]} Bg4 {[%emt 0:01:05]} 4. Ne5 {[%emt 0:01:16]} Bf5 {[%emt 0:00:22]} 5. Qb3 {[%emt 0:01:36]} Nd7 {[%emt 0:00:31]} 6. d4 {[%emt 0:02:45][%cal Bd2d4,Bd4e5][%mdl 32] [#] A11: English Opening: 1...c6.} Nxe5 $146 {[%emt 0:08:47]} ({Predecessor:} 6... Qb6 7. Qxb6 axb6 8. cxd5 cxd5 9. Nc3 Ngf6 10. e3 e6 11. Bb5 Bd6 12. f3 h6 {½-½ (45) Docx,S (2417)-Swinkels,R (2485) Belgium 2012}) 7. dxe5 {[%emt 0:00:35]} Qd7 {[%emt 0:00:07]} 8. cxd5 {[%emt 0:12:04] White is slightly better.} Qxd5 {[%emt 0:04:46]} 9. Qxd5 {[%emt 0:01:13]} cxd5 {[%emt 0:00:05]} 10. Nc3 {[%emt 0:00:23]} Rc8 {[%emt 0:08:36]} 11. e4 {[%emt 1:15:44]} ({But not} 11. Nxd5 $2 Be4 12. f3 Bxd5 $19) 11... dxe4 {[%emt 0:01:52]} 12. Be3 {[%emt 0:00:00]} (12. Bb5+ $16 Bd7 13. Bxd7+ Kxd7 14. Nxe4) 12... a6 {[%emt 0:01:05]} 13. Bg2 {[%emt 0:00:00][%mdl 1024] White has compensation.} Rc4 {[%emt 0:01:23]} 14. O-O {[%emt 0:00:00][%cal Bh1f1,Bf1d1,Bd1d3][%mdl 32] Strongly threatening Rac1.} e6 {[%emt 0:00:26]} 15. Rac1 {[%emt 0:00:00][%cal Oc3e4] Threatens to win with Nxe4!} Ne7 {[%emt 0:06:26]} 16. b3 {[%emt 0:00:00][%mdl 64] Deflection} Rc8 {[%emt 0:01:18]} 17. Nxe4 {[%emt 0:00:00] aiming for Nd6+.} Nc6 {[%emt 0:00:14]} 18. Rfd1 {[%emt 0:00:00]} Ba3 {[%emt 0:04:44]} 19. Rc4 {[%emt 0:00:00]} h6 {[%emt 0:03:10]} 20. b4 {[%emt 0:00:00] White is much more active.} (20. Bb6 $142) 20... Bxe4 {[%emt 0:01:56] This costs Black the game.} (20... Bxb4 $16 {was worth a try.} 21. Rb1 a5) 21. Bxe4 $18 {[%emt 0:00:00]} O-O {[%emt 0:00:09]} 22. Rd3 $1 $36 {[%emt 0:00:00][%mdl 2048] White is on the roll.} Bb2 {[%emt 0:01:53]} 23. f4 {[%emt 0:00:00]} Rfd8 {[%emt 0:04:38]} (23... f5 $142) 24. Rxd8+ {[%emt 0:00:47]} Rxd8 {[%emt 0:00:05]} 25. Kf2 {[%emt 0:00:20]} Ba3 {[%emt 0:01:16] [#]} 26. Ke2 $1 {[%emt 0:03:46] Inhibits Rd1.} ({Don't play} 26. Bxc6 bxc6 27. Rxc6 Bxb4) 26... Rb8 {[%emt 0:03:32]} 27. Bd2 {[%emt 0:01:32]} Ne7 {[%emt 0:01:01] [#]} 28. Kd3 {[%emt 0:00:45]} ({White should play} 28. Kd1 $1 $18 {[%cal Rd1c2]}) 28... b6 {[%emt 0:03:53]} (28... Rd8+ $16 29. Rd4 Nd5) 29. Bc3 {[%emt 0:01:15]} h5 {[%emt 0:01:51]} (29... g5 $142 30. Rc7 Nf5) 30. Rc7 {[%emt 0:00:11]} Kf8 {[%emt 0:04:52]} (30... Nd5 {was necessary.} 31. Bxd5 Rd8) 31. Ra7 {[%emt 0:00:14]} Rd8+ {[%emt 0:05:32]} 32. Kc2 {[%emt 0:00:05]} Rc8 {[%emt 0:00:58]} 33. Bb7 {[%emt 0:01:16]} Rb8 {[%emt 0:09:07]} (33... Nc6 $142) 34. Rxa6 {[%emt 0:00:15] White is clearly winning.} Nf5 {[%emt 0:00:22]} 35. Ra8 {[%emt 0:01:00]} Rxa8 {[%emt 0:00:15]} 36. Bxa8 {[%emt 0:00:01][%mdl 4096] Endgame KBB-KBN} h4 {[%emt 0:01:43]} 37. gxh4 {[%emt 0:00:11][%cal Bg3h4,Bh4h5][%mdl 32]} Ke7 {[%emt 0:01:10]} 38. h5 {[%emt 0:00:29]} Ne3+ {[%emt 0:00:48]} 39. Kd3 {[%emt 0:00:30]} Bc1 {[%emt 0:02:50]} 40. a4 {[%emt 0:00:31] Black must now prevent a5.} Ng4 {[%emt 0:00:58]} 41. a5 {[%emt 0:00:51]} bxa5 {[%emt 0:00:42]} 42. bxa5 {[%emt 0:00:01]} Bxf4 {[%emt 0:00:06]} 43. a6 {[%emt 0:00:38]} Bxh2 {[%emt 0:03:35]} 44. Bf3 {[%emt 0:00:13] Weighted Error Value: White=0.11 (very precise) /Black=0.38} 1-0

[Event "5th Sharjah Masters 2022"]
[Site "Sharjah"]
[Date "2022.05.24"]
[Round "4.28"]
[White "Can, Emre"]
[Black "Assaubayeva, Bibisara"]
[Result "1-0"]
[ECO "B23"]
[WhiteElo "2599"]
[BlackElo "2439"]
[Annotator "TA"]
[PlyCount "57"]
[EventDate "2022.05.21"]
[EventType "swiss"]
[EventCountry "UAE"]
[SourceTitle "playchess.com"]
[Source "ChessBase"]
[SourceQuality "1"]
[TimeControl "5400+30"]

{[%evp 9,57,21,17,0,-10,2,-4,-22,-20,-19,-16,-13,-12,-14,-7,-21,-10,-21,-21,-22,-14,-21,-21,-28,-28,-31,-2,-3,-4,-17,47,47,47,43,41,43,96,87,77,62,170,162,182,183,232,187,209,205,194,181]} 1. e4 {[%emt 0:00:05]} c5 {[%emt 0:00:36]} 2. Nc3 {[%emt 0:00:27]} d6 {[%emt 0:01:05]} 3. f4 {[%emt 0:00:37]} g6 {[%emt 0:01:08]} 4. Nf3 {[%emt 0:00:26]} Bg7 {[%emt 0:00:07]} 5. Bb5+ {[%emt 0:00:51]} Bd7 {[%emt 0:00:11]} 6. Bc4 {[%emt 0:00:53] B23: Closed Sicilian: Lines without g3.} Nc6 {[%emt 0:00:16][%cal Bb8c6,Bc6a5,Ba5c6][%mdl 32]} 7. d3 {[%emt 0:00:40]} Na5 {[%emt 0:05:49]} 8. Bd2 {[%emt 0:00:57][%cal Bc1d2,Bd2e1,Be1f2][%mdl 32] The position is equal.} e6 {[%emt 0:00:09]} 9. e5 {[%emt 0:00:14]} d5 {[%emt 0:06:53] Inhibits Ne4.} 10. Bb5 {[%emt 0:00:40]} Nc6 {[%emt 0:00:14] [#]} 11. O-O $146 {[%emt 0:00:10]} ({Predecessor:} 11. Bxc6 Bxc6 12. O-O Ne7 13. Be1 Qb6 14. a4 d4 15. a5 Qc7 16. Ne4 Bxe4 17. dxe4 {½-½ (39) Jobava,B (2617)-Giri,A (2780) Batumi 2019}) 11... h5 {[%emt 0:04:09]} 12. Be1 {[%emt 0:03:08]} Nh6 {[%emt 0:09:02]} 13. Bf2 {[%emt 0:12:20]} Bf8 {[%emt 0:05:44]} 14. h3 {[%emt 0:02:46]} Be7 {[%emt 0:00:43]} 15. Bxc6 {[%emt 0:03:32]} Bxc6 {[%emt 0:01:28]} 16. d4 {[%emt 0:00:33]} b6 {[%emt 0:06:33]} 17. Qd2 {[%emt 0:01:57]} h4 {[%emt 0:03:13]} 18. Nd1 {[%emt 0:02:51][%cal Bc3d1,Bd1e3,Be3g4][%mdl 32]} Nf5 {[%emt 0:08:24]} 19. Ne3 {[%emt 0:02:21]} Nxd4 {[%emt 0:07:39]} (19... Nxe3 $11 20. Bxe3 Kf8) 20. Nxd4 $14 {[%emt 0:00:50]} cxd4 {[%emt 0:00:01]} 21. Ng4 {[%emt 0:04:56]} Bb5 {[%emt 0:01:16]} 22. Rfe1 {[%emt 0:13:18]} d3 {[%emt 0:05:59]} (22... a5 $14) 23. cxd3 $16 {[%emt 0:00:34]} ({Don't play} 23. a4 Bc6 $11) 23... Rc8 {[%emt 0:10:33]} 24. Bd4 {[%emt 0:02:37] White is more active.} (24. a4 $5 {[%cal Ra4b5]} Bc6 25. Rec1 $14) 24... Qc7 {[%emt 0:11:00]} (24... Bc5 $14 25. Bxc5 bxc5) 25. a4 $18 {[%emt 0:03:49] White is clearly better.} Bd7 {[%emt 0:02:01]} 26. Rec1 {[%emt 0:02:57] Prevents Qc2.} Bc5 {[%emt 0:02:45]} (26... Qd8 $142 27. Rxc8 Qxc8) 27. Nf6+ {[%emt 0:03:28]} Kf8 {[%emt 0:00:31]} 28. Bxc5+ {[%emt 0:02:34]} bxc5 {[%emt 0:00:02]} 29. b4 {[%emt 0:00:11] Weighted Error Value: White=0.03 (flawless) /Black=0.15 (very precise)} 1-0